[Event "Titled Tuesday Blitz December 13 Early 2022"]
[White "Kleiman, Jake"]
[Black "Valle Maytin, Luis Enrique"]
[WhiteFideId "2020041"]
[BlackFideId "3503666"]
[WhiteElo "2578"]
[BlackElo "2225"]
[Result "1/2-1/2"]
[Round "05"]
[TimeControl "180+1"]
[Date "2022.12.14"]
[WhiteClock "0:00:17"]
[BlackClock "0:00:16"]

1. Nf3 {[%clk 0:03:00]}  Nf6 {[%clk 0:02:56]} 2. g3 {[%clk 0:03:01]}  g6 {[%clk 0:02:55]} 3. Bg2 {[%clk 0:03:01]}  Bg7 {[%clk 0:02:56]} 4. O-O {[%clk 0:02:58]}  O-O {[%clk 0:02:56]} 5. d3 {[%clk 0:02:57]}  d5 {[%clk 0:02:53]} 6. Nbd2 {[%clk 0:02:56]}  c6 {[%clk 0:02:51]} 7. e4 {[%clk 0:02:56]}  Bg4 {[%clk 0:02:36]} 8. Re1 {[%clk 0:02:55]}  Re8 {[%clk 0:02:24]} 9. h3 {[%clk 0:02:49]}  Bxf3 {[%clk 0:02:21]} 10. Qxf3 {[%clk 0:02:50]}  e5 {[%clk 0:02:14]} 11. Nb3 {[%clk 0:02:47]}  d4 {[%clk 0:02:10]} 12. Qe2 {[%clk 0:02:43]}  Nbd7 {[%clk 0:02:10]} 13. f4 {[%clk 0:02:42]}  c5 {[%clk 0:02:05]} 14. a4 {[%clk 0:02:41]}  b6 {[%clk 0:02:03]} 15. Qf2 {[%clk 0:02:37]}  Qc7 {[%clk 0:01:56]} 16. Bd2 {[%clk 0:02:37]}  Rac8 {[%clk 0:01:52]} 17. Bf1 {[%clk 0:02:32]}  Qd6 {[%clk 0:01:49]} 18. f5 {[%clk 0:02:29]}  Nf8 {[%clk 0:01:38]} 19. g4 {[%clk 0:02:28]}  N6d7 {[%clk 0:01:36]} 20. g5 {[%clk 0:02:23]}  f6 {[%clk 0:01:33]} 21. h4 {[%clk 0:02:22]}  Nb8 {[%clk 0:01:20]} 22. Bh3 {[%clk 0:02:20]}  Rcd8 {[%clk 0:01:19]} 23. Rf1 {[%clk 0:02:18]}  Nfd7 {[%clk 0:01:17]} 24. Qe2 {[%clk 0:02:09]}  Rf8 {[%clk 0:01:14]} 25. fxg6 {[%clk 0:02:06]}  hxg6 {[%clk 0:01:13]} 26. h5 {[%clk 0:02:06]}  fxg5 {[%clk 0:01:11]} 27. Bxg5 {[%clk 0:02:04]}  Rxf1+ {[%clk 0:01:07]} 28. Rxf1 {[%clk 0:02:04]}  Rf8 {[%clk 0:01:08]} 29. hxg6 {[%clk 0:01:55]}  Qxg6 {[%clk 0:01:02]} 30. Rxf8+ {[%clk 0:01:53]}  Nxf8 {[%clk 0:00:58]} 31. Qg2 {[%clk 0:01:54]}  Nc6 {[%clk 0:00:53]} 32. Bf5 {[%clk 0:01:47]}  Qd6 {[%clk 0:00:45]} 33. Nd2 {[%clk 0:01:44]}  Na5 {[%clk 0:00:43]} 34. b3 {[%clk 0:01:38]}  Nh7 {[%clk 0:00:42]} 35. Bh4 {[%clk 0:01:34]}  Qh6 {[%clk 0:00:37]} 36. Nf3 {[%clk 0:01:31]}  Qc1+ {[%clk 0:00:35]} 37. Kh2 {[%clk 0:01:31]}  Qf4+ {[%clk 0:00:35]} 38. Kh3 {[%clk 0:01:31]}  Nc6 {[%clk 0:00:30]} 39. Ng5 {[%clk 0:01:20]}  Qe3+ {[%clk 0:00:22]} 40. Kh2 {[%clk 0:01:16]}  Qf4+ {[%clk 0:00:21]} 41. Kh3 {[%clk 0:01:13]}  Qe3+ {[%clk 0:00:20]} 42. Qg3 {[%clk 0:01:12]}  Nxg5+ {[%clk 0:00:18]} 43. Bxg5 {[%clk 0:01:13]}  Qxg3+ {[%clk 0:00:17]} 44. Kxg3 {[%clk 0:01:13]}  Nb4 {[%clk 0:00:18]} 45. Bd8 {[%clk 0:01:05]}  Nxc2 {[%clk 0:00:17]} 46. Kf3 {[%clk 0:01:02]}  Na1 {[%clk 0:00:16]} 47. Be6+ {[%clk 0:01:00]}  Kf8 {[%clk 0:00:15]} 48. Ke2 {[%clk 0:00:56]}  Nc2 {[%clk 0:00:15]} 49. Bc7 {[%clk 0:00:56]}  Nb4 {[%clk 0:00:14]} 50. Bd6+ {[%clk 0:00:35]}  Ke8 {[%clk 0:00:13]} 51. Bf5 {[%clk 0:00:32]}  Bf6 {[%clk 0:00:13]} 52. Bc7 {[%clk 0:00:26]}  Ke7 {[%clk 0:00:12]} 53. Bg4 {[%clk 0:00:24]}  Nc6 {[%clk 0:00:12]} 54. Bc8 {[%clk 0:00:23]}  Na5 {[%clk 0:00:10]} 55. Bb8 {[%clk 0:00:21]}  Nc6 {[%clk 0:00:10]} 56. Bc7 {[%clk 0:00:21]}  Ke8 {[%clk 0:00:08]} 57. Kd2 {[%clk 0:00:20]}  Bd8 {[%clk 0:00:08]} 58. Bd6 {[%clk 0:00:18]}  Be7 {[%clk 0:00:08]} 59. Bc7 {[%clk 0:00:15]}  Bd8 {[%clk 0:00:06]} 60. Bb7 {[%clk 0:00:14]}  Na5 {[%clk 0:00:03]} 61. Bxd8 {[%clk 0:00:12]}  Kxd8 {[%clk 0:00:03]} 62. Bd5 {[%clk 0:00:13]}  Kc7 {[%clk 0:00:03]} 63. Ke2 {[%clk 0:00:13]}  Kd6 {[%clk 0:00:03]} 64. Kf3 {[%clk 0:00:13]}  Nc6 {[%clk 0:00:04]} 65. Ke2 {[%clk 0:00:12]}  Nb4 {[%clk 0:00:05]} 66. Bc4 {[%clk 0:00:11]}  a6 {[%clk 0:00:04]} 67. Kd2 {[%clk 0:00:11]}  Kc6 {[%clk 0:00:04]} 68. Bf7 {[%clk 0:00:10]}  b5 {[%clk 0:00:05]} 69. axb5+ {[%clk 0:00:10]}  axb5 {[%clk 0:00:06]} 70. Be8+ {[%clk 0:00:11]}  Kb6 {[%clk 0:00:06]} 71. Bd7 {[%clk 0:00:12]}  Ka5 {[%clk 0:00:06]} 72. Be8 {[%clk 0:00:12]}  Na2 {[%clk 0:00:06]} 73. Bd7 {[%clk 0:00:12]}  Kb4 {[%clk 0:00:07]} 74. Kc2 {[%clk 0:00:12]}  Nc3 {[%clk 0:00:07]} 75. Bc6 {[%clk 0:00:12]}  Ne2 {[%clk 0:00:07]} 76. Bd5 {[%clk 0:00:12]}  Nf4 {[%clk 0:00:08]} 77. Bc6 {[%clk 0:00:12]}  c4 {[%clk 0:00:08]} 78. bxc4 {[%clk 0:00:12]}  bxc4 {[%clk 0:00:09]} 79. dxc4 {[%clk 0:00:13]}  Kxc4 {[%clk 0:00:09]} 80. Kd2 {[%clk 0:00:13]}  Kc5 {[%clk 0:00:10]} 81. Bb7 {[%clk 0:00:14]}  Ne6 {[%clk 0:00:08]} 82. Bd5 {[%clk 0:00:13]}  Nc7 {[%clk 0:00:09]} 83. Bb7 {[%clk 0:00:13]}  Kb6 {[%clk 0:00:08]} 84. Bc8 {[%clk 0:00:14]}  Kc6 {[%clk 0:00:08]} 85. Bf5 {[%clk 0:00:14]}  Kd6 {[%clk 0:00:08]} 86. Bg4 {[%clk 0:00:15]}  Ne6 {[%clk 0:00:08]} 87. Be2 {[%clk 0:00:15]}  Nf4 {[%clk 0:00:08]} 88. Bc4 {[%clk 0:00:16]}  Kc5 {[%clk 0:00:08]} 89. Bf7 {[%clk 0:00:16]}  Kd6 {[%clk 0:00:08]} 90. Bg8 {[%clk 0:00:16]}  Ke7 {[%clk 0:00:08]} 91. Bc4 {[%clk 0:00:16]}  Kf6 {[%clk 0:00:09]} 92. Bf1 {[%clk 0:00:16]}  Kg5 {[%clk 0:00:10]} 93. Bc4 {[%clk 0:00:16]}  Kg4 {[%clk 0:00:11]} 94. Bb5 {[%clk 0:00:15]}  Kf3 {[%clk 0:00:11]} 95. Ba6 {[%clk 0:00:12]}  Kxe4 {[%clk 0:00:11]} 96. Bb7+ {[%clk 0:00:13]}  Nd5 {[%clk 0:00:10]} 97. Bc6 {[%clk 0:00:14]}  d3 {[%clk 0:00:10]} 98. Bxd5+ {[%clk 0:00:13]}  Kxd5 {[%clk 0:00:10]} 99. Kxd3 {[%clk 0:00:14]}  e4+ {[%clk 0:00:11]} 100. Ke3 {[%clk 0:00:14]}  Ke5 {[%clk 0:00:12]} 101. Ke2 {[%clk 0:00:15]}  Kd4 {[%clk 0:00:13]} 102. Kd2 {[%clk 0:00:15]}  e3+ {[%clk 0:00:13]} 103. Ke2 {[%clk 0:00:15]}  Ke4 {[%clk 0:00:14]} 104. Ke1 {[%clk 0:00:16]}  Kd3 {[%clk 0:00:15]} 105. Kd1 {[%clk 0:00:16]}  e2+ {[%clk 0:00:15]} 106. Ke1 {[%clk 0:00:17]}  Ke3 {[%clk 0:00:16]} 1/2-1/2


[Site "https://www.chess.com"]

[Event "Titled Tuesday Blitz December 13 Early 2022"]
[White "Krzywda, Andrzej"]
[Black "Aldokhin, Ivan"]
[WhiteFideId "1114565"]
[BlackFideId "24115720"]
[WhiteElo "2149"]
[BlackElo "2313"]
[Result "0-1"]
[Round "05"]
[TimeControl "180+1"]
[Date "2022.12.14"]
[WhiteClock "0:00:02"]
[BlackClock "0:00:07"]

1. d4 {[%clk 0:02:53]}  Nf6 {[%clk 0:02:59]} 2. c4 {[%clk 0:02:53]}  g6 {[%clk 0:03:00]} 3. Nf3 {[%clk 0:02:53]}  Bg7 {[%clk 0:03:00]} 4. Nc3 {[%clk 0:02:53]}  O-O {[%clk 0:03:01]} 5. e4 {[%clk 0:02:53]}  d6 {[%clk 0:03:02]} 6. Be2 {[%clk 0:02:54]}  Nc6 {[%clk 0:03:02]} 7. d5 {[%clk 0:02:53]}  Nb4 {[%clk 0:03:02]} 8. O-O {[%clk 0:02:52]}  Re8 {[%clk 0:03:02]} 9. Nd4 {[%clk 0:02:47]}  c5 {[%clk 0:02:54]} 10. Nf3 {[%clk 0:02:36]}  e6 {[%clk 0:02:52]} 11. dxe6 {[%clk 0:02:30]}  Bxe6 {[%clk 0:02:50]} 12. Bg5 {[%clk 0:02:23]}  h6 {[%clk 0:02:47]} 13. Bh4 {[%clk 0:02:23]}  Qb6 {[%clk 0:02:30]} 14. Rb1 {[%clk 0:02:09]}  Rad8 {[%clk 0:02:19]} 15. a3 {[%clk 0:02:08]}  Nc6 {[%clk 0:02:14]} 16. Nd5 {[%clk 0:01:45]}  Bxd5 {[%clk 0:02:12]} 17. exd5 {[%clk 0:01:43]}  Ne5 {[%clk 0:01:36]} 18. b4 {[%clk 0:01:38]}  g5 {[%clk 0:01:17]} 19. Bg3 {[%clk 0:01:30]}  Ne4 {[%clk 0:01:17]} 20. Qc2 {[%clk 0:01:24]}  Nxg3 {[%clk 0:01:12]} 21. hxg3 {[%clk 0:01:25]}  Re7 {[%clk 0:01:05]} 22. Nxe5 {[%clk 0:01:15]}  Bxe5 {[%clk 0:01:02]} 23. Qf5 {[%clk 0:01:09]}  Bd4 {[%clk 0:00:54]} 24. Bd3 {[%clk 0:01:04]}  Re5 {[%clk 0:00:26]} 25. Qh7+ {[%clk 0:01:01]}  Kf8 {[%clk 0:00:26]} 26. Qh8+ {[%clk 0:00:54]}  Ke7 {[%clk 0:00:26]} 27. Qxh6 {[%clk 0:00:55]}  cxb4 {[%clk 0:00:23]} 28. axb4 {[%clk 0:00:49]}  Re8 {[%clk 0:00:17]} 29. c5 {[%clk 0:00:21]}  dxc5 {[%clk 0:00:15]} 30. Qh7 {[%clk 0:00:14]}  cxb4 {[%clk 0:00:12]} 31. Kh2 {[%clk 0:00:08]}  Qf6 {[%clk 0:00:08]} 32. Kg1 {[%clk 0:00:03]}  Rh8 {[%clk 0:00:08]} 33. d6+ {[%clk 0:00:02]}  Kxd6 {[%clk 0:00:07]} 0-1


[Site "https://www.chess.com"]

[Event "Titled Tuesday Blitz December 13 Early 2022"]
[White "Kuzmin, Roman"]
[Black "Lewicki, Miroslaw"]
[WhiteFideId "44134932"]
[BlackFideId "1113380"]
[WhiteElo "2180"]
[BlackElo "2191"]
[Result "1-0"]
[Round "05"]
[TimeControl "180+1"]
[Date "2022.12.14"]
[WhiteClock "0:00:19"]
[BlackClock "0:00:11"]

1. e4 {[%clk 0:03:00]}  c5 {[%clk 0:03:00]} 2. Nf3 {[%clk 0:03:01]}  d6 {[%clk 0:03:00]} 3. d4 {[%clk 0:03:01]}  cxd4 {[%clk 0:03:01]} 4. Nxd4 {[%clk 0:03:02]}  Nf6 {[%clk 0:03:02]} 5. Nc3 {[%clk 0:03:03]}  g6 {[%clk 0:03:01]} 6. Be3 {[%clk 0:03:02]}  Bg7 {[%clk 0:03:01]} 7. Be2 {[%clk 0:03:03]}  a6 {[%clk 0:03:01]} 8. Qd2 {[%clk 0:03:03]}  Qc7 {[%clk 0:03:02]} 9. O-O-O {[%clk 0:03:03]}  b5 {[%clk 0:03:02]} 10. f4 {[%clk 0:02:55]}  Bb7 {[%clk 0:03:02]} 11. Bf3 {[%clk 0:02:56]}  Nbd7 {[%clk 0:03:00]} 12. Nd5 {[%clk 0:02:49]}  Nxd5 {[%clk 0:02:49]} 13. exd5 {[%clk 0:02:50]}  Rc8 {[%clk 0:02:48]} 14. Kb1 {[%clk 0:02:34]}  O-O {[%clk 0:02:46]} 15. h4 {[%clk 0:02:30]}  Nb6 {[%clk 0:02:44]} 16. h5 {[%clk 0:01:49]}  Nc4 {[%clk 0:02:19]} 17. Qf2 {[%clk 0:01:46]}  Nxe3 {[%clk 0:02:08]} 18. Qxe3 {[%clk 0:01:47]}  Bxd4 {[%clk 0:02:08]} 19. Qxd4 {[%clk 0:01:48]}  Qxc2+ {[%clk 0:02:09]} 20. Ka1 {[%clk 0:01:49]}  Rc4 {[%clk 0:02:09]} 21. Qe3 {[%clk 0:01:48]}  Rfc8 {[%clk 0:02:06]} 22. Rb1 {[%clk 0:01:36]}  R8c7 {[%clk 0:01:39]} 23. hxg6 {[%clk 0:01:23]}  hxg6 {[%clk 0:01:38]} 24. Be2 {[%clk 0:01:21]}  Ra4 {[%clk 0:00:34]} 25. Qh3 {[%clk 0:01:11]}  Rxa2+ {[%clk 0:00:29]} 26. Kxa2 {[%clk 0:01:12]}  Bxd5+ {[%clk 0:00:28]} 27. Ka1 {[%clk 0:01:12]}  Qa4+ {[%clk 0:00:28]} 28. Qa3 {[%clk 0:01:11]}  Qxf4 {[%clk 0:00:27]} 29. Rbd1 {[%clk 0:00:48]}  Bxg2 {[%clk 0:00:21]} 30. Rhg1 {[%clk 0:00:48]}  Be4 {[%clk 0:00:20]} 31. Qg3 {[%clk 0:00:27]}  Qf6 {[%clk 0:00:19]} 32. Bd3 {[%clk 0:00:24]}  Bd5 {[%clk 0:00:16]} 33. Bxg6 {[%clk 0:00:21]}  fxg6 {[%clk 0:00:15]} 34. Rxd5 {[%clk 0:00:20]}  Kg7 {[%clk 0:00:11]} 35. Rg5 {[%clk 0:00:19]} 1-0


[Site "https://www.chess.com"]

[Event "Titled Tuesday Blitz December 13 Early 2022"]
[White "Larina, Maria"]
[Black "Herman, Daniel"]
[WhiteFideId "24113182"]
[BlackFideId "30935008"]
[WhiteElo "1848"]
[BlackElo "1897"]
[Result "1/2-1/2"]
[Round "05"]
[TimeControl "180+1"]
[Date "2022.12.14"]
[WhiteClock "0:01:36"]
[BlackClock "0:02:21"]

1. e4 {[%clk 0:03:00]}  e6 {[%clk 0:03:00]} 2. d4 {[%clk 0:02:59]}  c5 {[%clk 0:03:01]} 3. Nf3 {[%clk 0:02:57]}  cxd4 {[%clk 0:02:58]} 4. Nxd4 {[%clk 0:02:58]}  a6 {[%clk 0:02:58]} 5. g3 {[%clk 0:02:56]}  Nf6 {[%clk 0:02:54]} 6. Bg2 {[%clk 0:02:56]}  d5 {[%clk 0:02:54]} 7. Nc3 {[%clk 0:02:33]}  Bb4 {[%clk 0:02:49]} 8. O-O {[%clk 0:02:26]}  e5 {[%clk 0:02:41]} 9. Nf5 {[%clk 0:02:11]}  Bxf5 {[%clk 0:02:41]} 10. exf5 {[%clk 0:02:11]}  Bxc3 {[%clk 0:02:31]} 11. bxc3 {[%clk 0:02:12]}  O-O {[%clk 0:02:31]} 12. Bg5 {[%clk 0:02:07]}  e4 {[%clk 0:02:31]} 13. Qd4 {[%clk 0:01:57]}  Nc6 {[%clk 0:02:30]} 14. Bxf6 {[%clk 0:01:51]}  Qxf6 {[%clk 0:02:31]} 15. Qxf6 {[%clk 0:01:51]}  gxf6 {[%clk 0:02:31]} 16. Rfd1 {[%clk 0:01:46]}  Rfd8 {[%clk 0:02:30]} 17. c4 {[%clk 0:01:38]}  dxc4 {[%clk 0:02:25]} 18. Bxe4 {[%clk 0:01:36]}  Kf8 {[%clk 0:02:21]} 1/2-1/2


[Site "https://www.chess.com"]

[Event "Titled Tuesday Blitz December 13 Early 2022"]
[White "Lazavik, Denis"]
[Black "Kopylov, Alexander A."]
[WhiteFideId "13515110"]
[BlackFideId "4164857"]
[WhiteElo "2484"]
[BlackElo "2436"]
[Result "1-0"]
[Round "05"]
[TimeControl "180+1"]
[Date "2022.12.13"]
[WhiteClock "0:00:46"]
[BlackClock "0:00:36"]

1. d4 {[%clk 0:03:00]}  Nf6 {[%clk 0:02:59]} 2. c4 {[%clk 0:03:00]}  e6 {[%clk 0:03:00]} 3. Nf3 {[%clk 0:03:00]}  d5 {[%clk 0:02:59]} 4. g3 {[%clk 0:03:01]}  Be7 {[%clk 0:03:00]} 5. Bg2 {[%clk 0:03:02]}  O-O {[%clk 0:03:00]} 6. O-O {[%clk 0:03:02]}  dxc4 {[%clk 0:03:00]} 7. Qc2 {[%clk 0:03:03]}  b5 {[%clk 0:03:01]} 8. a4 {[%clk 0:03:02]}  Bb7 {[%clk 0:03:01]} 9. axb5 {[%clk 0:03:02]}  a6 {[%clk 0:03:02]} 10. bxa6 {[%clk 0:03:02]}  Nxa6 {[%clk 0:03:03]} 11. Qxc4 {[%clk 0:03:03]}  c5 {[%clk 0:03:03]} 12. dxc5 {[%clk 0:02:39]}  Nxc5 {[%clk 0:03:02]} 13. Rxa8 {[%clk 0:02:36]}  Qxa8 {[%clk 0:03:03]} 14. Nc3 {[%clk 0:02:36]}  Rc8 {[%clk 0:03:03]} 15. Qf4 {[%clk 0:02:03]}  Nfe4 {[%clk 0:02:45]} 16. Nxe4 {[%clk 0:01:56]}  Bxe4 {[%clk 0:02:41]} 17. Be3 {[%clk 0:01:54]}  Na4 {[%clk 0:02:13]} 18. Bd4 {[%clk 0:01:50]}  f6 {[%clk 0:02:04]} 19. Qg4 {[%clk 0:01:16]}  Qd5 {[%clk 0:02:04]} 20. Ng5 {[%clk 0:00:54]}  f5 {[%clk 0:00:59]} 21. Bxe4 {[%clk 0:00:49]}  Qxd4 {[%clk 0:00:40]} 22. Bxf5 {[%clk 0:00:46]}  Qxg4 {[%clk 0:00:40]} 23. Bxg4 {[%clk 0:00:47]}  Rc2 {[%clk 0:00:38]} 24. Bxe6+ {[%clk 0:00:46]}  Kf8 {[%clk 0:00:36]} 25. Nxh7+ {[%clk 0:00:46]} 1-0


[Site "https://www.chess.com"]

[Event "Titled Tuesday Blitz December 13 Early 2022"]
[White "Lewtak, Damian"]
[Black "Salinas Herrera, Pablo"]
[WhiteFideId "1141724"]
[BlackFideId "3407128"]
[WhiteElo "2620"]
[BlackElo "2810"]
[Result "1-0"]
[Round "05"]
[TimeControl "180+1"]
[Date "2022.12.14"]
[WhiteClock "0:00:57"]
[BlackClock "0:00:02"]

1. e4 {[%clk 0:03:00]}  c5 {[%clk 0:02:59]} 2. Nf3 {[%clk 0:03:01]}  e6 {[%clk 0:02:59]} 3. d3 {[%clk 0:02:57]}  d5 {[%clk 0:02:56]} 4. Nbd2 {[%clk 0:02:57]}  Nc6 {[%clk 0:02:55]} 5. g3 {[%clk 0:02:57]}  g6 {[%clk 0:02:44]} 6. Bg2 {[%clk 0:02:56]}  Nge7 {[%clk 0:02:45]} 7. O-O {[%clk 0:02:56]}  Bg7 {[%clk 0:02:46]} 8. Re1 {[%clk 0:02:55]}  O-O {[%clk 0:02:45]} 9. e5 {[%clk 0:02:55]}  b5 {[%clk 0:02:45]} 10. Nf1 {[%clk 0:02:43]}  a5 {[%clk 0:02:40]} 11. h4 {[%clk 0:02:43]}  b4 {[%clk 0:02:34]} 12. h5 {[%clk 0:02:39]}  a4 {[%clk 0:02:33]} 13. N1h2 {[%clk 0:02:19]}  gxh5 {[%clk 0:02:18]} 14. Bf4 {[%clk 0:02:17]}  Ng6 {[%clk 0:02:17]} 15. c3 {[%clk 0:02:07]}  a3 {[%clk 0:02:17]} 16. cxb4 {[%clk 0:01:59]}  axb2 {[%clk 0:02:16]} 17. Rb1 {[%clk 0:01:59]}  Nxb4 {[%clk 0:02:15]} 18. Rxb2 {[%clk 0:01:57]}  Nxa2 {[%clk 0:02:09]} 19. Qa1 {[%clk 0:01:51]}  Qa5 {[%clk 0:02:08]} 20. Bd2 {[%clk 0:01:42]}  Qa4 {[%clk 0:01:55]} 21. d4 {[%clk 0:01:26]}  cxd4 {[%clk 0:01:52]} 22. g4 {[%clk 0:01:11]}  hxg4 {[%clk 0:01:43]} 23. Nxg4 {[%clk 0:01:12]}  Nc3 {[%clk 0:01:43]} 24. Qc1 {[%clk 0:01:10]}  Qc4 {[%clk 0:00:33]} 25. Bh6 {[%clk 0:01:05]}  d3 {[%clk 0:00:17]} 26. Qg5 {[%clk 0:01:05]}  Ne4 {[%clk 0:00:11]} 27. Rxe4 {[%clk 0:01:05]}  Qxe4 {[%clk 0:00:06]} 28. Nf6+ {[%clk 0:01:04]}  Bxf6 {[%clk 0:00:02]} 29. Qxf6 {[%clk 0:01:04]}  Ra1+ {[%clk 0:00:02]} 30. Kh2 {[%clk 0:00:57]} 1-0


[Site "https://www.chess.com"]

[Event "Titled Tuesday Blitz December 13 Early 2022"]
[White "Li, Hui"]
[Black "Seifert, Henryk"]
[WhiteFideId "15400310"]
[BlackFideId "1100963"]
[WhiteElo "1954"]
[BlackElo "2120"]
[Result "1-0"]
[Round "05"]
[TimeControl "180+1"]
[Date "2022.12.14"]
[WhiteClock "0:00:04"]
[BlackClock "0:00:05"]

1. e4 {[%clk 0:02:38]}  e6 {[%clk 0:02:59]} 2. d4 {[%clk 0:02:38]}  d5 {[%clk 0:02:59]} 3. Nd2 {[%clk 0:02:34]}  c5 {[%clk 0:02:59]} 4. exd5 {[%clk 0:02:33]}  exd5 {[%clk 0:02:58]} 5. Ngf3 {[%clk 0:02:33]}  Nc6 {[%clk 0:02:58]} 6. Bb5 {[%clk 0:02:33]}  Bd6 {[%clk 0:02:58]} 7. O-O {[%clk 0:02:32]}  cxd4 {[%clk 0:02:56]} 8. Nxd4 {[%clk 0:02:31]}  Bxh2+ {[%clk 0:02:54]} 9. Kxh2 {[%clk 0:01:52]}  Qh4+ {[%clk 0:02:52]} 10. Kg1 {[%clk 0:01:49]}  Qxd4 {[%clk 0:02:52]} 11. Nf3 {[%clk 0:01:46]}  Qxd1 {[%clk 0:02:40]} 12. Rxd1 {[%clk 0:01:47]}  Ne7 {[%clk 0:02:39]} 13. Re1 {[%clk 0:01:34]}  O-O {[%clk 0:02:24]} 14. Bg5 {[%clk 0:01:33]}  Ng6 {[%clk 0:02:11]} 15. Rad1 {[%clk 0:01:29]}  Be6 {[%clk 0:01:57]} 16. c3 {[%clk 0:01:24]}  a6 {[%clk 0:01:55]} 17. Ba4 {[%clk 0:01:22]}  b5 {[%clk 0:01:51]} 18. Bb3 {[%clk 0:01:20]}  h6 {[%clk 0:01:45]} 19. Be3 {[%clk 0:01:17]}  Rad8 {[%clk 0:01:35]} 20. Nd4 {[%clk 0:01:16]}  Nxd4 {[%clk 0:01:31]} 21. Bxd4 {[%clk 0:01:17]}  Rfe8 {[%clk 0:01:30]} 22. a4 {[%clk 0:01:11]}  bxa4 {[%clk 0:01:10]} 23. Bxa4 {[%clk 0:01:11]}  Re7 {[%clk 0:01:07]} 24. b4 {[%clk 0:01:05]}  Rc8 {[%clk 0:01:01]} 25. Bb3 {[%clk 0:01:01]}  Rd7 {[%clk 0:00:54]} 26. Ra1 {[%clk 0:00:56]}  Rd6 {[%clk 0:00:46]} 27. Ra5 {[%clk 0:00:56]}  Nf4 {[%clk 0:00:39]} 28. g3 {[%clk 0:00:41]}  Nd3 {[%clk 0:00:37]} 29. Rea1 {[%clk 0:00:28]}  Rcc6 {[%clk 0:00:24]} 30. Ba4 {[%clk 0:00:20]}  Rc4 {[%clk 0:00:23]} 31. Bb3 {[%clk 0:00:19]}  Rcc6 {[%clk 0:00:22]} 32. f3 {[%clk 0:00:17]}  h5 {[%clk 0:00:20]} 33. Kg2 {[%clk 0:00:15]}  h4 {[%clk 0:00:19]} 34. Bc2 {[%clk 0:00:12]}  Nb2 {[%clk 0:00:18]} 35. gxh4 {[%clk 0:00:07]}  Nc4 {[%clk 0:00:17]} 36. Rc5 {[%clk 0:00:07]}  Rxc5 {[%clk 0:00:16]} 37. Bxc5 {[%clk 0:00:08]}  Rc6 {[%clk 0:00:16]} 38. Bd4 {[%clk 0:00:08]}  g6 {[%clk 0:00:15]} 39. Bd3 {[%clk 0:00:07]}  Bf5 {[%clk 0:00:11]} 40. Bxf5 {[%clk 0:00:07]}  gxf5 {[%clk 0:00:11]} 41. Kg3 {[%clk 0:00:07]}  Rg6+ {[%clk 0:00:07]} 42. Kf4 {[%clk 0:00:07]}  Nd2 {[%clk 0:00:06]} 43. b5 {[%clk 0:00:05]}  axb5 {[%clk 0:00:05]} 44. Ra8+ {[%clk 0:00:04]} 1-0


[Site "https://www.chess.com"]

[Event "Titled Tuesday Blitz December 13 Early 2022"]
[White "Ljukin, Sergei"]
[Black "Hoffmann, Asa"]
[WhiteFideId "14102200"]
[BlackFideId "2001470"]
[WhiteElo "2312"]
[BlackElo "2117"]
[Result "0-1"]
[Round "05"]
[TimeControl "180+1"]
[Date "2022.12.14"]
[WhiteClock "0:00:03"]
[BlackClock "0:01:26"]

1. e4 {[%clk 0:02:56]}  d6 {[%clk 0:02:55]} 2. d4 {[%clk 0:02:55]}  Nf6 {[%clk 0:02:54]} 3. Nc3 {[%clk 0:02:55]}  c6 {[%clk 0:02:54]} 4. f4 {[%clk 0:02:55]}  Qa5 {[%clk 0:02:53]} 5. Bd3 {[%clk 0:02:53]}  e5 {[%clk 0:02:52]} 6. Nf3 {[%clk 0:02:50]}  exd4 {[%clk 0:02:51]} 7. Nxd4 {[%clk 0:02:50]}  Qb6 {[%clk 0:02:51]} 8. Bc4 {[%clk 0:02:26]}  d5 {[%clk 0:02:50]} 9. exd5 {[%clk 0:02:24]}  Bc5 {[%clk 0:02:49]} 10. Nf3 {[%clk 0:00:45]}  O-O {[%clk 0:02:46]} 11. Qd3 {[%clk 0:00:36]}  Re8+ {[%clk 0:02:41]} 12. Ne2 {[%clk 0:00:36]}  Ng4 {[%clk 0:02:28]} 13. Qb3 {[%clk 0:00:34]}  Bf2+ {[%clk 0:02:22]} 14. Kf1 {[%clk 0:00:29]}  cxd5 {[%clk 0:02:10]} 15. Qxb6 {[%clk 0:00:20]}  Bxb6 {[%clk 0:02:08]} 16. Bxd5 {[%clk 0:00:21]}  Nc6 {[%clk 0:02:00]} 17. h3 {[%clk 0:00:19]}  Ne3+ {[%clk 0:01:59]} 18. Bxe3 {[%clk 0:00:18]}  Rxe3 {[%clk 0:01:55]} 19. Rd1 {[%clk 0:00:13]}  Bf5 {[%clk 0:01:52]} 20. Bxc6 {[%clk 0:00:12]}  bxc6 {[%clk 0:01:52]} 21. Ned4 {[%clk 0:00:13]}  Be6 {[%clk 0:01:37]} 22. Nxe6 {[%clk 0:00:09]}  Rxe6 {[%clk 0:01:33]} 23. Nd4 {[%clk 0:00:07]}  Re4 {[%clk 0:01:31]} 24. Ne2 {[%clk 0:00:04]}  Rae8 {[%clk 0:01:30]} 25. Rd2 {[%clk 0:00:05]}  Be3 {[%clk 0:01:30]} 26. Rd3 {[%clk 0:00:04]}  Bxf4 {[%clk 0:01:29]} 27. Nxf4 {[%clk 0:00:03]}  Re1+ {[%clk 0:01:28]} 28. Kf2 {[%clk 0:00:03]}  Rxh1 {[%clk 0:01:28]} 29. Rd7 {[%clk 0:00:03]}  Rc1 {[%clk 0:01:26]} 0-1


[Site "https://www.chess.com"]